Cogmind - Beta 16 @@@ ROGUE MODE // 2025.12.01 @ 16:30:47 Player: AngelSpirit Result: Destroyed by 7I-DHB(R) with Subdweller Beam Cannon Performance ------------- Evolutions (0) 0 Regions Visited (2) 400 Robots Destroyed (24) 120 Value Destroyed (582) 582 Prototype IDs (0) 0 Alien Tech Used (0) 0 Bonus (0) 0 TOTAL SCORE: 1102 Bonus ------- None Cogmind --------- Core Integrity 0/250 Matter 290/300 Energy 122/125 System Corruption 0% Temperature Cool (9) Movement Rolling (80) Location -10/Subcaves Parts ------- > --- POWER (1) -------- Light Ion Engine > --- PROPULSION (2) --- Wheel Wheel > --- UTILITY (2) ------ Medium Storage Unit Structural Scanner > --- WEAPON (2) ------- Beam Cannon > --- INVENTORY (10) --- Light Ion Engine Wheel Wheel Wheel Signal Interpreter Signal Interpreter Hacking Suite Hacking Suite Peak State ------------ > --- POWER ------------ Ion Engine > --- PROPULSION ------- Wheel Wheel > --- UTILITY ---------- Medium Storage Unit Propulsion Shielding > --- WEAPON ----------- EM Pulse Gun EM Pulse Gun > --- INVENTORY -------- Wheel Structural Scanner Signal Interpreter Hacking Suite Hacking Suite Beam Cannon [Rating: 8] Favorites ----------- Power Ion Engine Engine Ion Engine Propulsion Wheel Wheel Wheel Utility Medium Storage Unit Device Structural Scanner Storage Medium Storage Unit Protection Propulsion Shielding Weapon EM Pulse Gun Energy Gun EM Pulse Gun Energy Cannon Beam Cannon Launcher Grenade Launcher Build | -11 -10 -10 ------- Run | Yrd Mat Sub Slots Evolved . | . . . Power . | . . . Propulsion . | . . . Utility . | . . . Weapon . | . . . Parts Attached 20 | 7 12 1 Power 5 | 2 3 . Engine 5 | 2 3 . Core . | . . . Reactor . | . . . Propulsion 4 | 2 2 . Treads . | . . . Leg . | . . . Wheel 4 | 2 2 . Hover . | . . . Flight . | . . . Utility 4 | 1 2 1 Device 1 | . . 1 Storage 2 | 1 1 . Processor . | . . . Hackware . | . . . Protection 1 | . 1 . Artifact . | . . . Weapon 7 | 2 5 . Energy Gun 5 | 2 3 . Energy Cannon 1 | . 1 . Ballistic Gun . | . . . Ballistic Cannon . | . . . Launcher 1 | . 1 . Special Weapon . | . . . Impact Weapon . | . . . Slashing Weapon . | . . . Piercing Weapon . | . . . Special Melee Weapon . | . . . Unidentified Prototypes . | . . . Parts Lost 8 | . 8 . Power 1 | . 1 . Propulsion 1 | . 1 . Utility . | . . . Weapon 6 | . 6 . Highest Loss Streak 4 | . 4 . To Critical Strikes . | . . . Average Backups 5 | . 5 8 Power . | . . 1 Propulsion 1 | . . 3 Utility 2 | . 2 4 Weapon 1 | . 1 . Tool/Special . | . . . Unused Backups 8 | . 1 7 Power . | . . . Propulsion 3 | . . 3 Utility 4 | . . 4 Weapon 1 | . 1 . Tool/Special . | . . . Average Slot Usage (%) 87 | . 88 85 Engine 13 | . 13 14 Wheel 27 | . 27 28 Device 2 | . . 14 Storage 14 | . 14 14 Protection 4 | . 5 . Energy Gun 20 | . 25 . Energy Cannon 3 | . 1 14 Peak Build Rating 8 | 6 8 7 Average Rating 6 | 4 6 7 On Entrance 4 | . 6 7 Avg Prop Armor Cover (%) . | . . . Naked Turns . | . . . Heaviest Build 20 | 14 20 17 Greatest Support 20 | 20 20 20 Greatest Overweight (x) . | . . . Average Overweight (x) . | . . . Largest Inventory Capacity 10 | 8 10 10 Average Capacity 9 | 7 9 10 Most Carried 9 | 1 9 9 Average Carried 5 | . 5 8 Final Capacity 10 | 8 10 10 Final Carried 9 | 1 9 8 Class Distribution -------------------- 100% | Mutant Dominant Class ---------------- Mutant | -10/Materials Mutant | -10/Subcaves Resources | -11 -10 -10 ----------- Run | Yrd Mat Sub Matter Collected 405 | 213 192 . Remotely . | . . . Salvage Created 859 | . 859 . Parts 50 | . 50 . Haulers Intercepted 2 | . 2 . Recyclers Shooed . | . . . Parts Field Recycled . | . . . Retrieved Matter . | . . . Parts Self-Destructed . | . . . Prevented . | . . . Parts Restored . | . . . Kills | -11 -10 -10 ------- Run | Yrd Mat Sub Combat Hostiles Destroyed 14 | . 14 . Guns 10 | . 10 . Cannons 2 | . 2 . AOE 2 | . 2 . Classes Destroyed 8 | . 8 . Builder 1 | . 1 . Tunneler 2 | . 2 . Hauler 2 | . 2 . Operator 2 | . 2 . Watcher 3 | . 3 . Swarmer 3 | . 3 . Grunt 10 | . 10 . Subdweller 1 | . 1 . Best Kill Streak 7 | . 7 . Combat Bots Only 4 | . 4 . Max Kills in Single Turn 2 | . 2 . Gunslinging . | . . . Exploded 1 | . 1 . Melee . | . . . Uniques/NPCs Destroyed . | . . . Combat | -11 -10 -10 -------- Run | Yrd Mat Sub Hostile Shots Fired 106 | . 95 11 Missed 44 | . 41 3 Hits 62 | . 54 8 Projectile 62 | . 54 8 Critical Strikes 1 | . 1 . Damage Taken 970 | . 747 223 Core 278 | . 168 110 Absorbed by Shields . | . . . Redirected to Shielding 9 | . 9 . Core Remaining (%) 100 | 100 . . Volleys Fired 90 | . 78 12 Largest 2 | . 2 1 Hottest 100 | . 100 60 Shots Fired 149 | . 137 12 Gun 120 | . 120 . Cannon 26 | . 14 12 Launcher 3 | . 3 . Special . | . . . Kinetic . | . . . Thermal 26 | . 14 12 Explosive 3 | . 3 . Electromagnetic 120 | . 120 . Robot Hit Streak 9 | . 9 4 Robot Miss Streak 5 | . 5 2 Penetration Max . | . . . Secondary Targets 2 | . 2 . Max Gunslinging Chain 1 | . 1 . Shots Hit Robots 80 | . 73 7 Core Hits 36 | . 35 1 Critical Kills . | . . . Critical Parts Destroyed . | . . . Critical Strikes 2 | . 2 . Corrupt 2 | . 2 . Melee Attacks . | . . . Impact . | . . . Slashing . | . . . Piercing . | . . . Sneak Attacks . | . . . Combat Hostiles . | . . . Follow-up Attacks . | . . . Damage Inflicted 1741 | . 1600 141 Guns 930 | . 930 . Cannons 246 | . 105 141 Explosions 565 | . 565 . Melee . | . . . Ramming . | . . . Kinetic . | . . . Thermal 561 | . 420 141 Explosive 250 | . 250 . Electromagnetic 930 | . 930 . Impact . | . . . Slashing . | . . . Piercing . | . . . Highest Corruption . | . . . Average Corruption . | . . . Corruption Purged . | . . . Corruption Blocked . | . . . Overload Shots . | . . . Overflow Damage . | . . . Projectiles . | . . . Explosions . | . . . Melee . | . . . Knockbacks . | . . . Impact . | . . . Kinetic . | . . . Secondary . | . . . Self-Inflicted Damage 95 | . 95 . Shots 4 | . 4 . Rammed . | . . . Targets Rammed . | . . . Kicked . | . . . Crushed . | . . . Highest Temperature 274 | . 274 . Average Temperature 100 | . 100 . Received Heat Transfer 402 | . 330 72 Siege Activations . | . . . Martial Activations . | . . . Shielding Activations . | . . . Robots Disrupted . | . . . Combat Hostiles . | . . . Robots Corrupted . | . . . Combat Hostiles . | . . . Parts Fried 1 | . 1 . Impact Corruptions . | . . . Robots Melted . | . . . Combat Hostiles . | . . . Parts Melted . | . . . Heat Transferred 818 | . 522 296 Parts Sabotaged . | . . . Parts Stolen . | . . . Parts Stripped . | . . . Power Chain Reactions 4 | . 4 . Alert | -11 -10 -10 ------- Run | Yrd Mat Sub Maximum Alert Level 1 | . 1 . Low Security (%) 64 | 100 63 . Level 1 35 | . 36 . Level 2 . | . . . Level 3 . | . . . Level 4 . | . . . Level 5 . | . . . High Security . | . . . Max Security . | . . . Peak Influence 248 | . 248 . Initial . | . . . Average 128 | . 135 . Influence Increases 596 | . 596 . Destroy 0b10 Robot/C 260 | . 260 . Destroy 0b10 Robot/NC 50 | . 50 . Destroy Leader 60 | . 60 . Successful Hack 28 | . 28 . Disable Machine 45 | . 45 . Destroy Structure 33 | . 33 . Lose Combat Pursuer 120 | . 120 . Influence Decreases 568 | . 387 181 Entered New Map 101 | . . 101 Time Decay 387 | . 307 80 Lost Part 80 | . 80 . Squads Dispatched 4 | . 4 . Investigation 3 | . 3 . Extermination . | . . . Reinforcement 1 | . 1 . Assault . | . . . Garrison . | . . . Intercept . | . . . Searches Triggered . | . . . Construction Impeded . | . . . Haulers Reinforced . | . . . Active Scanning Responses . | . . . Cargo Convoy Interrupts . | . . . Stealth | -11 -10 -10 --------- Run | Yrd Mat Sub Distress Signals 3 | . 3 . Communications Jammed . | . . . Distress Signals . | . . . Times Spotted 33 | . 32 1 Peak Tracking Total 5 | . 5 1 Tactical Retreats 8 | . 8 . Traps | -11 -10 -10 ------- Run | Yrd Mat Sub Traps Triggered 1 | . 1 . Indirectly . | . . . Trap Hack Attempts . | . . . Triggered . | . . . Disarmed . | . . . Reprogrammed 1 | . 1 . Reused . | . . . Traps Extracted . | . . . Installed . | . . . Triggered . | . . . Machines | -11 -10 -10 ---------- Run | Yrd Mat Sub Machines Disabled 4 | . 4 . Max in Single Turn 1 | . 1 . Machines Repaired . | . . . Machines Dismantled . | . . . Machines Sabotaged . | . . . Overloaded Fab Kills . | . . . Hacking | -11 -10 -10 --------- Run | Yrd Mat Sub Machines Accessed 9 | . 9 . Terminals 7 | . 7 . Fabricators . | . . . Repair Stations 1 | . 1 . Recycling Units 1 | . 1 . Scanalyzers . | . . . Garrison Access . | . . . Total Hacks 27 | . 27 . Successful 13 | . 13 . Failed 14 | . 14 . Catastrophic 3 | . 3 . Database Lockouts . | . . . Manual 19 | . 19 . Terminals 24 | . 24 . Fabricators . | . . . Repair Stations 2 | . 2 . Recycling Units 1 | . 1 . Scanalyzers . | . . . Garrison Access . | . . . Terminal Hacks 6 | . 6 . Robot Analysis 1 | . 1 . Branch Access Points 1 | . 1 . Alert Level 1 | . 1 . Locate Traps 2 | . 2 . Reprogram Traps 1 | . 1 . Fabricator Hacks . | . . . Repair Station Hacks 1 | . 1 . Scan Component 1 | . 1 . Recycling Unit Hacks 1 | . 1 . Report Inventory 1 | . 1 . Scanalyzer . | . . . Garrison Access Hacks . | . . . Unauthorized Hacks 5 | . 5 . Terminals 5 | . 5 . Track 1 | . 1 . Botnet 4 | . 4 . Fabricators . | . . . Repair Stations . | . . . Recycling Units . | . . . Scanalyzers . | . . . Garrison Access . | . . . Data Cores Recovered 1 | . 1 . Used . | . . . Hacking Detections 8 | . 8 . Full Trace Events 2 | . 2 . Feedback Events . | . . . Feedback Blocked . | . . . Robot Schematics Acquired . | . . . Robots Built . | . . . Authchips . | . . . Time . | . . . Total Robot Build Rating . | . . . Part Schematics Acquired . | . . . Parts Built . | . . . Authchips . | . . . Time . | . . . Total Part Build Rating . | . . . Part Studies Acquired . | . . . Parts Repaired . | . . . Time . | . . . Parts Recycled . | . . . Recycled Matter . | . . . Retrieved Matter . | . . . Retrieved Components . | . . . Parts Scanalyzed . | . . . Part Schematics Acquired . | . . . Parts Damaged . | . . . Bothacking | -11 -10 -10 ------------ Run | Yrd Mat Sub Used RIF Installer . | . . . Robots Hacked . | . . . Non-combat . | . . . Combat . | . . . Robot Hacks Applied . | . . . Relay Couplers Released . | . . . Fabnet Peak Effective % . | . . . Robots Rewired . | . . . Allies Hacked . | . . . Hacks Repelled . | . . . Allies | -11 -10 -10 -------- Run | Yrd Mat Sub Total Allies . | . . . Largest Group . | . . . Highest-Rated Group . | . . . Highest-Rated Ally . | . . . Total Orders . | . . . Ally Attacks . | . . . Total Damage . | . . . Kills . | . . . Allies Corrupted . | . . . Allies Melted . | . . . Intel | -11 -10 -10 ------- Run | Yrd Mat Sub Active Infowar (turns) 176 | . . 176 Structural 176 | . . 176 Robot Analysis Total 1 | . 1 . Derelict Logs Recovered . | . . . Drone Launches . | . . . Drone Recoveries . | . . . Exploration | -11 -10 -10 ------------- Run | Yrd Mat Sub Turns Passed 978 | 41 761 176 Spaces Moved 829 | 38 603 188 Core 3 | 3 . . Treads . | . . . Legs . | . . . Wheels 826 | 35 603 188 Hover . | . . . Flight . | . . . Fastest Speed 50 | 50 80 80 Average Speed 79 | 77 80 80 Slowest Speed 80 | 80 80 80 Overloaded Moves . | . . . Propulsion Burnouts . | . . . Robots Hopped . | . . . Potential Cave-ins . | . . . Cave-ins Triggered . | . . . Exploration Rate (%) 31 | 3 77 14 Regions Visited 2 Branch Regions 1 Pre-discovered Areas . | . . . Known Exits Taken . | . . . Unknown Exits Taken 2 | 1 1 . Scrap Searched . | . . . Spaces Dug . | . . . Terrain Destroyed 49 | . 49 . Melee . | . . . Projectile . | . . . AOE 49 | . 49 . Terrain Rammed . | . . . Walls Destroyed . | . . . Machines Disabled . | . . . Actions | -11 -10 -10 --------- Run | Yrd Mat Sub Total 991 | 46 743 202 Wait 28 | . 28 . Move 827 | 37 602 188 Hop . | . . . Pick Up 18 | 1 17 . Fast Attach 9 | 6 3 . Attach 6 | . 6 . Detach . | . . . Swap 6 | 1 4 1 Drop 7 | 1 5 1 Fire 90 | . 78 12 Melee . | . . . Ram . | . . . Kick . | . . . Crush . | . . . Escape Stasis . | . . . Rewire . | . . . Trap . | . . . Miscellaneous . | . . . Route ------- -11/Scrapyard -10/Materials (discovered 5 exits: [*Mat x2] / *Min x2 / [*Sub]) -10/Subcaves (discovered 1 exit: [*Scr]) History --------- Turn | Location | Event 24 | -11/Scrapyard | Discovered new exit (range 15) 42 | -11/Scrapyard | Entered Materials 76 | -10/Materials | Discovered new exit (range 14) 311 | -10/Materials | Build established: Mutant 341 | -10/Materials | Discovered new exit (range 4) 371 | -10/Materials | Discovered new exit (range 5) 542 | -10/Materials | Derelicts attacked the area 542 | -10/Materials | Discovered new exit (range 13) 553 | -10/Materials | Identified exit to Mines 733 | -10/Materials | Core integrity fell below 50% 778 | -10/Materials | Lost 4 parts (1p1n2w) 794 | -10/Materials | Discovered new exit (range 12) 803 | -10/Materials | Entered Subcaves 804 | -10/Subcaves | Approached by a straggling Scientist 976 | -10/Subcaves | Core integrity fell below 20% 979 | -10/Subcaves | Destroyed by 7I-DHB(R) with Subdweller Beam Cannon Last Messages --------------- 00783_ K-01 Serf collects debris. 00783_ Acquired Wheel. 00786_ K-01 Serf collects debris. 00788_ Acquired Lgt. Ion Engine. 00789_ K-01 Serf collects debris. 00794_ EXIT=FOUND 00795_ K-01 Serf collects debris. LOCATION=UNKNOWN AMBIENT_HEAT=-10 GOAL=ESCAPE 00804_ FG-GTT(c): "Thank the algorithms! I was beginning to lose hope I'd never make it past all the Subs lurking out here." 00805_ Dropped Propulsion Shielding. 00807_ FG-GTT(c): "Hey, let me tag along and I can get us both out of this nasty situation. At least I think I can... The group I got separated from was talking about a shortcut back to the UFD." 00809_ FG-GTT(c) exits level. Map ----- +----------------------------------------------------+ | ?????????????????????????????????????????????????? | | ?????????????????????????????????????????????????? | | ?????????????????????????????????????????????????? | | ?????????????????????????????????????????????????? | | ?????????????????????????????????????????????????? | | ?????????????????????????????????????????????????? | | ?????????????????????????????????????????????????? | | ?????????????????????????????????????????????????? | | ?????????????????????????????????????????????????? | | ???????????####??????????????????????????????????? | | ???????#########?????????????????????????????????? | | ???????##### ###?????????????????????????????????? | | ???????## ##?????????????????????????????????? | | ????????## ##?????????????????????????????????? | | ???????### #####???????????????????????????????? | | ???????### ######???????????????????????????????? | | ???????## ### ##?????????"?????????????????????? | | ??????#### ###??????? ?????????????????????? | | ???####### ######????" "???????????????????? | | ???##### #####????"###???????????????????? | | ??### ##????" ##???????????????????? | | ??### ##?# ###??????????????????? | | #### #######?###R ###??????????????????? | | ####" ## ##########; ##??????????????????? | | #"" #### ########## ###??????????????????? | | ##### ##### @;###???????????????????? | | #### ### ;##????????????????????? | | #" ### #####??????????????????? | | # ## ### ###?????????????????? | | # ### ## ##?????????????????? | | ## #### ### ##?????????????????? | | ## #### ### ###?????????????????? | | ### ##### ####### ###?????????????????? | | #### #### ######### ##??????????????##### | | #### ### ##???#### ####??????????????##### | | #### ### ###?????? ####??????????????## | | ??## ### ####????? ########????######### | | ??## #### ###????? #########?########### | | ??### #### ##????? # ######## ###### | | ??#### ##### ##????? ##### #### | | ???### #### ####????? ## ### | | ????### ### ##?????# # #### ## ### ## | | #???### ############ # ## #### # | | #????## ########## ### ##### | | ###??### ## ### ## # ## #### | | ######## ### ## | | ###### #### ### | | #### ## # # ### # ##### ### | | ## ### ############## ### ##### ### | | ################## ### ##### ###? | +----------------------------------------------------+ Best States ------------- Heat Dissipation 25 Energy Generation 10 Energy Capacity 250 Matter Stores 300 Matter Capacity 300 Sight Range 16 Terrain Scan Density 10 Propulsion Shielding 33 Evasion (%) 44 Item Schematics ----------------- None Robot Schematics ------------------ None Fabricated ------------ Nothing Repaired ---------- Nothing Studied --------- None Alien Tech Used ----------------- None Achievements -------------- None Challenges ------------ None Game ------ Seed BiocellThrowingMallet Manual? 0 Play Time 00:12:44 Cumulative 138.1 hours Start 2025.12.01 @ 16:19:08 End 2025.12.01 @ 16:30:47 Sessions 1 Manual Loads 0 Difficulty Rogue Special Mode None Game No. 72 Rogue 72 Adventurer 0 Explorer 0 Win Type - Total 1 Types 1/0/0/0/0/0/0/0/0/0 Lore% 63 Gallery% 60 Achievement% 48 Wizard Run 0 Options --------- Layout 1 ASCII 0 Keyboard 0 Movement Mouse Keybinds 0 Fullscreen 2 Font 32/SmallcapsGlow Map View 50x35 Zoom Use 0% Tactical HUD 1 Map Filters NONE Filters NONE Steam 1 RUN: 95c97c53-4e7a-41c0-a62c-21dd6c0cccd0